bitfinex-derivatives/quotes_SOLF0:USTF0_20251221
["timestamp","ask_amount","ask_price","bid_price","bid_amount"]
[1766306642589,3.24,125.95,125.86,3.21]
[1766306642787,3.24,125.92,125.84,3.21]
[1766306642992,3.24,125.91,125.84,3.21]
[1766306643184,2.60049624,125.9,125.84,3.21]
[1766306643378,5.84049624,125.9,125.84,3.21]
[1766306643578,0.05984044,125.88,125.86,0.05780883]
[1766306643786,5.90033668,125.88,125.79,114.5487]
[1766306643993,5.84049624,125.88,125.8,50.19]
[1766306644194,3.24,125.85,125.78,3.21]
[1766306644394,3.24,125.83,125.77,1.861224]
[1766306644785,0.05205905,125.81,125.79,0.05457745]
[1766306644985,3.30205905,125.81,125.72,10.6816]
[1766306645191,3.25,125.81,125.73,46.96]
[1766306645893,3.25,125.8,125.72,50.48]
[1766306646093,0.05875888,125.77,125.75,0.06022725]
[1766306646399,3.25,125.8,125.75,0.06022725]
[1766306647086,5.85049624,125.83,125.75,0.06022725]
[1766306647286,0.05632709,125.8,125.78,0.05813159]
[1766306647685,2.60049624,125.85,125.78,0.05813159]
[1766306648296,3.25,125.84,125.78,0.05813159]
[1766306648702,0.05854525,125.82,125.78,0.05813159]
[1766306651187,3.25,125.89,125.8,3.52]
[1766306651496,3.25,125.89,125.82,3.52]
[1766306651695,3.25,125.92,125.82,3.52]
[1766306652204,0.00041988,125.88,125.86,0.05030756]
[1766306653397,0.00041988,125.88,125.86,0.00030756]
[1766306655009,4.83041988,125.88,125.86,0.00030756]
[1766306655299,3.25,125.87,125.78,50.46]
[1766306656193,0.05461506,125.84,125.81,0.06022184]
[1766306657510,0.05461506,125.84,125.81,0.00022184]
[1766306657805,3.30461506,125.84,125.81,0.00022184]
[1766306661206,0.05461506,125.84,125.81,0.00022184]
[1766306661905,3.30461506,125.84,125.81,0.00022184]
[1766306663502,3.25,125.8,125.71,3.52]
[1766306664909,0.06103253,125.77,125.74,0.05185735]
[1766306665310,0.00103253,125.77,125.74,0.05185735]
[1766306665511,0.00103253,125.77,125.74,3.24185735]
[1766306671608,0.00103253,125.77,125.74,0.05185735]
[1766306672406,3.45103253,125.77,125.74,0.00185735]
[1766306679613,10.61033253,125.77,125.74,0.00185735]
[1766306679810,3.35,125.76,125.66,10.6551]
[1766306680016,3.35,125.76,125.66,57.6151]
[1766306680212,3.35,125.74,125.66,57.6151]
[1766306680524,3.35,125.74,125.66,10.6551]
[1766306680730,0.05252175,125.71,125.69,0.06037123]
[1766306682719,0.05252175,125.71,125.69,0.00037123]
[1766306685923,0.00252175,125.71,125.69,0.00037123]
[1766306686724,3.35252175,125.71,125.69,0.00037123]
[1766306687323,0.00252175,125.71,125.69,0.00037123]
[1766306700228,0.00252175,125.71,125.69,3.49037123]
[1766306701128,0.00252175,125.71,125.7,3.49]
[1766306701435,7.31289548,125.8,125.7,3.49]
[1766306701932,7.31289548,125.8,125.72,10.6517]
[1766306702230,3.35,125.8,125.73,3.49]
[1766306702435,46.96,125.81,125.75,3.54209236]
[1766306702629,3.35,125.82,125.75,3.54209236]
[1766306702835,7.31289548,125.81,125.72,3.49]
[1766306703330,7.31289548,125.84,125.72,3.49]
[1766306703531,3.35,125.84,125.77,3.54219352]
[1766306703835,14.46659548,125.87,125.77,3.54219352]
[1766306704026,14.46659548,125.87,125.77,3.49]
[1766306704424,7.31289548,125.87,125.81,0.05324742]
[1766306704627,3.35,125.86,125.81,0.05324742]
[1766306706750,3.42,125.83,125.81,0.00324742]
[1766306707233,3.42,125.83,125.75,3.18]
[1766306707639,3.42,125.82,125.72,3.18]
[1766306708131,0.05777047,125.78,125.76,0.00056034]
[1766306708334,3.42,125.8,125.76,0.00056034]
[1766306709042,0.05651912,125.79,125.76,0.00056034]
[1766306710037,3.47651912,125.79,125.76,0.00056034]
[1766306711238,3.47651912,125.79,125.7,3.18]
[1766306711542,3.42,125.79,125.7,3.18]
[1766306712041,3.42,125.78,125.7,3.18]
[1766306712245,3.42,125.77,125.7,3.18]
[1766306712544,0.0559009,125.75,125.72,0.05712826]
[1766306716245,0.0559009,125.75,125.67,57.3045]
[1766306716246,3.4759009,125.75,125.67,57.3045]
[1766306716441,3.42,125.75,125.67,57.3045]
[1766306716744,3.96289548,125.77,125.69,3.18]
[1766306717242,3.96289548,125.77,125.72,0.05985244]
[1766306718444,0.06094843,125.76,125.72,0.05985244]
[1766306720952,0.06094843,125.76,125.72,3.23985244]
[1766306721745,0.06094843,125.76,125.72,0.05985244]
[1766306726455,3.39094843,125.76,125.68,3.27]
[1766306726646,3.33,125.75,125.68,3.27]
[1766306727438,0.05032719,125.73,125.7,0.05042663]
[1766306731050,7.34322267,125.73,125.63,3.27]
[1766306731251,3.33,125.72,125.63,3.27]
[1766306731752,3.33,125.72,125.63,10.4367]
[1766306731944,3.33,125.72,125.64,3.27]
[1766306732147,0.0539657,125.69,125.67,0.05964943]
[1766306732549,0.0539657,125.69,125.64,3.27]
[1766306732743,0.0539657,125.69,125.62,3.27]
[1766306732942,3.33,125.69,125.62,3.27]
[1766306733350,3.33,125.68,125.6,3.27]
[1766306733559,0.05710976,125.65,125.63,0.05110611]
[1766306734056,0.05710976,125.65,125.63,0.00110611]
[1766306734449,0.05710976,125.65,125.57,50.25]
[1766306734450,3.38710976,125.65,125.57,50.25]
[1766306734647,3.33,125.65,125.57,50.25]
[1766306734848,3.33,125.65,125.57,46.98]
[1766306735048,7.43338198,125.67,125.56,3.51]
[1766306735253,7.43338198,125.67,125.57,3.51]
[1766306735449,0.05835658,125.63,125.61,0.05318853]
[1766306735650,0.05835658,125.63,125.61,0.00318853]
[1766306743356,3.47,125.67,125.61,0.00318853]
[1766306744360,0.05529573,125.65,125.61,0.00318853]
[1766306745457,3.52529573,125.65,125.61,0.00318853]
[1766306748775,0.05529573,125.65,125.61,0.00318853]
[1766306749281,0.05529573,125.65,125.61,3.51318853]
[1766306751174,46.96,125.7,125.62,3.51]
[1766306751369,50.43,125.7,125.62,3.51]
[1766306752057,50.43,125.7,125.63,3.51]
[1766306752261,0.0601276,125.68,125.65,0.05319594]
[1766306753470,3.5301276,125.68,125.65,0.00319594]
[1766306754579,0.0601276,125.68,125.65,0.00319594]
[1766306761276,3.5301276,125.68,125.65,0.00319594]
[1766306764081,0.0601276,125.68,125.65,0.00319594]
[1766306764774,0.0001276,125.68,125.65,3.51319594]
[1766306765173,0.0001276,125.68,125.65,0.00319594]
[1766306765373,3.2001276,125.68,125.65,0.00319594]
[1766306773980,3.2001276,125.68,125.59,3.21]
[1766306774176,3.2,125.68,125.59,3.21]
[1766306774379,3.2,125.68,125.61,3.21]
[1766306774983,0.05840707,125.66,125.63,0.05407949]
[1766306781884,3.2,125.7,125.63,3.26407949]
[1766306782080,3.2,125.7,125.63,3.21]
[1766306782285,3.2,125.7,125.64,3.21]
[1766306782794,0.06069462,125.68,125.66,0.05174279]
[1766306784591,3.51069462,125.68,125.66,0.00174279]
[1766306785092,0.06069462,125.68,125.66,0.00174279]
[1766306788393,3.51069462,125.68,125.66,0.00174279]
[1766306792701,3.51069462,125.68,125.61,3.3]
[1766306793904,3.51069462,125.68,125.63,0.05676491]
[1766306795393,3.51069462,125.68,125.6,16.93380839]
[1766306795591,3.45,125.68,125.6,7.1684]
[1766306796091,3.45,125.68,125.58,161.9383]
[1766306796092,3.36,125.64,125.58,10.5795]
[1766306796392,0.05984926,125.62,125.6,0.05378463]
[1766306796592,0.05984926,125.62,125.6,0.00378463]
[1766306796593,3.41984926,125.62,125.6,0.00378463]
[1766306797799,3.41984926,125.62,125.53,7.1727]
[1766306797800,3.41984926,125.62,125.54,3.41]
[1766306798097,2.60179006,125.63,125.54,3.41]
[1766306798098,5.96179006,125.61,125.54,3.41]
[1766306798293,3.36,125.6,125.52,3.41]
[1766306798804,0.05693746,125.57,125.55,0.05491738]
[1766306801403,3.36,125.62,125.55,0.05491738]
[1766306801607,3.36,125.62,125.54,3.41]
[1766306802404,0.0581479,125.59,125.57,0.06004849]
[1766306802598,0.0581479,125.59,125.57,4.849e-05]
[1766306802994,3.4181479,125.59,125.52,3.41]
[1766306803991,3.4181479,125.59,125.54,0.0541271]
[1766306805496,0.0581479,125.59,125.54,3.4641271]
[1766306812511,0.0581479,125.59,125.54,10.6360271]
[1766306812710,0.0581479,125.59,125.55,3.41]
[1766306817009,1.72523732,125.59,125.54,0.0541271]
[1766306817606,5.08523732,125.59,125.54,0.0541271]
[1766306820006,3.36,125.58,125.54,0.0541271]
[1766306820208,1.66708942,125.57,125.54,0.0541271]
[1766306822318,1.66708942,125.55,125.51,3.41]
[1766306822919,5.02708942,125.55,125.49,3.41]
[1766306823426,0.05386441,125.53,125.51,0.05937413]
[1766306823618,0.00386441,125.53,125.51,3.46937413]
[1766306824016,0.00386441,125.53,125.52,3.41]
[1766306824326,47.02,125.62,125.53,3.41]
[1766306824327,50.38,125.62,125.53,3.41]
[1766306824619,3.36,125.64,125.56,3.41]
[1766306824814,1.66708942,125.65,125.57,3.41]
[1766306825015,5.02708942,125.67,125.59,3.4]
[1766306825215,0.00029337,125.64,125.62,0.06089653]
[1766306828814,0.00029337,125.64,125.62,0.00089653]
[1766306834532,0.00029337,125.64,125.62,3.40089653]
[1766306836831,0.00029337,125.64,125.63,3.4]
[1766306837130,1.66708942,125.72,125.64,3.4]
[1766306837328,1.66708942,125.72,125.65,3.4]
[1766306837523,1.66708942,125.76,125.67,3.4]
[1766306837829,3.39,125.76,125.68,3.4]
[1766306838024,1.66708942,125.75,125.68,3.4]
[1766306838217,0.05533032,125.73,125.7,0.0511689]
[1766306838623,5.11241974,125.73,125.7,0.0011689]
[1766306838815,1.72241974,125.73,125.7,0.0011689]
[1766306839426,0.05533032,125.73,125.7,0.0011689]
[1766306840322,3.44533032,125.73,125.7,0.0011689]
[1766306845929,3.44533032,125.73,125.64,3.37]
[1766306846231,3.29,125.75,125.66,3.37]
[1766306846932,0.05464489,125.72,125.69,0.06051137]
[1766306847633,0.05464489,125.72,125.69,0.00051137]
[1766306847634,3.34464489,125.72,125.69,0.00051137]
[1766306849433,3.34464489,125.72,125.65,3.37]
[1766306850436,3.34464489,125.72,125.67,0.05640229]
[1766306850936,3.29,125.71,125.62,3.37]
[1766306851124,3.29,125.7,125.62,3.37]
[1766306851333,3.96417697,125.71,125.62,3.37]
[1766306851638,3.29,125.72,125.62,3.37]
[1766306852041,3.29,125.72,125.66,0.05053737]
[1766306852941,0.05080569,125.7,125.66,0.05053737]
[1766306857140,3.36080569,125.7,125.66,0.05053737]
[1766306859445,1.66490064,125.68,125.66,0.05053737]
[1766306860638,5.02570633,125.7,125.66,0.05053737]
[1766306863742,1.66490064,125.68,125.66,0.05053737]
[1766306865444,3.31,125.67,125.58,3.51]
[1766306865640,1.66490064,125.66,125.58,3.51]
[1766306865842,4.97490064,125.66,125.59,3.51]
[1766306866237,0.05378406,125.64,125.61,0.05888774]
[1766306873742,0.05378406,125.64,125.61,3.56888774]
[1766306876746,0.05378406,125.64,125.61,0.05888774]
[1766306878840,0.05378406,125.64,125.61,3.56888774]
[1766306881170,0.05378406,125.64,125.61,0.05888774]
[1766306884258,0.05378406,125.64,125.57,168.30400839]
[1766306884259,3.36378406,125.64,125.57,10.6802]
[1766306884467,3.36378406,125.64,125.58,3.51]
[1766306885167,3.36378406,125.64,125.6,0.05041428]
[1766306886363,5.96614839,125.64,125.6,0.05041428]
[1766306886749,3.36378406,125.64,125.6,0.05041428]
[1766306889252,3.3,125.63,125.55,10.5313]
[1766306889452,3.3,125.63,125.56,3.36]
[1766306890364,0.05756396,125.61,125.58,0.0532194]
[1766306894169,3.3,125.65,125.58,3.4132194]
[1766306895068,0.05879164,125.63,125.58,3.4132194]
[1766306902268,13.06827261,125.68,125.59,3.36]
[1766306903064,0.05983978,125.65,125.62,0.05105091]
[1766306905276,3.52983978,125.65,125.62,0.05105091]
[1766306905572,0.05983978,125.65,125.62,0.05105091]
[1766306908171,6.07377261,125.64,125.57,10.4501]
[1766306909078,0.05597168,125.62,125.59,0.05212019]
[1766306912880,3.47,125.61,125.54,3.28]
[1766306913774,0.05138023,125.59,125.56,0.05873528]
[1766306917381,3.27138023,125.59,125.52,3.38]
[1766306917586,5.82377261,125.58,125.52,3.38]
[1766306918281,3.22,125.57,125.5,3.38]
[1766306918471,0.05660524,125.55,125.52,0.05799708]
[1766306925292,3.22,125.59,125.52,3.43799708]
[1766306926091,0.05970271,125.57,125.52,3.43799708]
[1766306926292,0.05970271,125.57,125.53,0.05715473]
[1766306926992,3.27970271,125.57,125.53,0.05715473]
[1766306929399,5.82377261,125.56,125.5,3.38]
[1766306929688,3.22,125.55,125.5,3.38]
[1766306930383,0.05521381,125.54,125.5,3.38]
[1766306930582,0.05521381,125.54,125.51,3.43552703]
[1766306932189,3.27521381,125.54,125.47,3.38]
[1766306932388,3.22,125.54,125.47,3.38]
[1766306932688,3.22,125.54,125.48,3.38]
[1766306933279,0.05077087,125.52,125.5,0.0282386]
[1766306934092,0.00077087,125.52,125.5,0.0282386]
[1766306937989,3.22,125.51,125.45,3.38]
[1766306938191,1.66889589,125.5,125.45,3.38]
[1766306938990,0.05374317,125.49,125.46,0.05]
[1766306939489,4.88889589,125.48,125.41,3.38]
[1766306940093,1.66889589,125.49,125.42,3.38]
[1766306940294,3.22,125.51,125.42,3.38]
[1766306940295,4.88889589,125.51,125.42,3.38]
[1766306940489,0.00159599,125.48,125.42,116.72149589]
[1766306940688,0.00159599,125.48,125.44,3.38]
[1766306940890,0.00159599,125.48,125.45,3.38]
[1766306941286,0.00159599,125.48,125.45,10.557]
[1766306941485,0.00159599,125.48,125.46,3.38]
[1766306947301,0.00159599,125.48,125.46,3.36]
[1766306948604,0.00159599,125.48,125.46,10.5366]
[1766306949312,0.00159599,125.48,125.47,3.36]
[1766306953908,0.00159599,125.48,125.46,10.5366]
[1766306954103,0.00159599,125.48,125.46,3.36]
[1766306954512,0.00159599,125.48,125.46,10.5365]
[1766306954703,0.00159599,125.48,125.47,3.36]
[1766306955309,5.09889589,125.55,125.48,3.36]
[1766306955505,1.66889589,125.57,125.5,3.36]
[1766306956111,5.09889589,125.57,125.5,3.36]
[1766306956308,0.05610962,125.55,125.52,0.05159599]
[1766306956515,0.05610962,125.55,125.52,3.41159599]
[1766306958606,3.43,125.59,125.52,3.41159599]
[1766306958916,3.43,125.58,125.52,3.41159599]
[1766306959620,0.05432951,125.56,125.52,3.41159599]
[1766306960711,0.00432951,125.56,125.53,3.36]
[1766306961517,0.00432951,125.56,125.53,57.5926]
[1766306961717,0.00432951,125.56,125.54,3.36]
[1766306965423,0.00432951,125.56,125.52,3.37159599]
[1766306976237,0.00432951,125.56,125.52,10.54459599]
[1766306976729,0.00432951,125.56,125.53,3.32]
[1766306979326,0.00432951,125.56,125.53,10.4926]
[1766306979525,0.00432951,125.56,125.54,3.32]
[1766306983235,0.00432951,125.56,125.52,50.41159599]
[1766306987041,0.00432951,125.56,125.53,3.32]
[1766306989745,0.00432951,125.56,125.53,10.4926]
[1766306989945,0.00432951,125.56,125.54,3.32]
[1766307000351,3.35,125.6,125.54,3.32]
[1766307001460,0.05759606,125.58,125.56,0.05435918]
[1766307003059,7.1684,125.61,125.56,3.37435918]
[1766307003355,10.5174,125.63,125.56,3.37435918]
[1766307003557,10.5174,125.63,125.56,3.32]
[1766307003753,3.35,125.62,125.56,3.32]
[1766307004149,0.05567227,125.6,125.58,0.05655855]
[1766307004353,3.40567227,125.6,125.54,10.492]
[1766307005355,3.40567227,125.6,125.56,0.05214431]
[1766307011561,3.40567227,125.6,125.56,0.00214431]
[1766307018675,0.05567227,125.6,125.56,3.38214431]
[1766307018869,3.28567227,125.6,125.56,0.00214431]
[1766307029979,3.36,125.59,125.56,0.00214431]
[1766307036089,7.22477227,125.6,125.56,0.00214431]
[1766307036283,0.05567227,125.6,125.56,0.00214431]
[1766307037286,3.33567227,125.6,125.56,0.00214431]
[1766307047490,3.28,125.58,125.56,0.00214431]
[1766307047691,3.28,125.58,125.52,3.22]
[1766307048691,0.05153683,125.56,125.54,0.05092803]
[1766307051794,0.00153683,125.56,125.54,3.27092803]
[1766307057499,3.28,125.6,125.54,3.27092803]
[1766307058487,0.05894281,125.58,125.54,3.27092803]
[1766307059596,0.05894281,125.58,125.54,13.03633642]
[1766307059798,0.05894281,125.58,125.55,3.22]
[1766307060199,4.94733912,125.62,125.55,3.22]
[1766307060704,3.28,125.61,125.55,3.22]
[1766307061200,0.05999684,125.59,125.57,0.05791971]
[1766307074117,3.24999684,125.59,125.53,13.10540839]
[1766307074316,3.24999684,125.59,125.54,3.34]
[1766307075022,3.24999684,125.59,125.55,0.05602517]
[1766307083030,1.66733912,125.58,125.55,0.05602517]
[1766307083734,4.85733912,125.58,125.55,0.05602517]
[1766307084230,0.05999684,125.59,125.56,3.44]
[1766307084437,50.42,125.64,125.56,3.44]
[1766307084732,3.4,125.62,125.56,3.44]
[1766307085433,0.05483015,125.6,125.58,0.05935914]
[1766307088532,3.45483015,125.6,125.54,13.20540839]
[1766307088835,3.45483015,125.6,125.55,3.44]
[1766307089033,3.4,125.6,125.55,3.44]
[1766307089430,0.06114445,125.59,125.56,0.05675232]
[1766307090223,3.46114445,125.59,125.56,0.05675232]
[1766307090629,5.06721474,125.58,125.52,9.76540839]
[1766307090834,5.06721474,125.58,125.51,13.20540839]
[1766307091031,5.06721474,125.58,125.52,3.44]
[1766307091634,0.05235114,125.56,125.54,0.05303629]
[1766307092239,3.4,125.55,125.5,3.44]
[1766307093228,3.4,125.55,125.51,0.05433734]
[1766307096432,1.71956588,125.56,125.51,0.05433734]
[1766307096433,5.10721474,125.54,125.51,0.05433734]
[1766307096837,3.44,125.53,125.51,0.00433734]
[1766307097737,3.49464617,125.53,125.51,0.00433734]
[1766307101445,0.05464617,125.53,125.51,0.00433734]
[1766307104252,3.44,125.52,125.47,3.45]
[1766307109849,1.72186091,125.53,125.47,3.45]
[1766307110149,0.05464617,125.53,125.48,3.45]
[1766307118658,3.49464617,125.53,125.48,3.45]
[1766307118865,5.16186091,125.53,125.48,3.45]
[1766307121365,3.49464617,125.53,125.48,3.45]
[1766307122159,0.05464617,125.53,125.49,3.45]
[1766307131263,0.00464617,125.53,125.49,3.45]
[1766307131475,0.00464617,125.53,125.51,3.18]
[1766307132462,0.00464617,125.53,125.5,0.05]
[1766307134767,0.00464617,125.53,125.5,3.23]
[1766307135470,3.23464617,125.53,125.46,3.18]
[1766307136768,0.00464617,125.53,125.47,3.18]
[1766307138676,0.00464617,125.53,125.48,3.18]
[1766307140075,0.00464617,125.53,125.49,3.18]
[1766307143678,0.00464617,125.53,125.5,3.18]
[1766307144272,0.00464617,125.53,125.51,3.27]
[1766307156591,0.00464617,125.53,125.49,13.05540839]
[1766307156891,0.00464617,125.53,125.49,3.29]
[1766307160282,0.00464617,125.53,125.5,3.29]
[1766307160597,0.00464617,125.53,125.51,3.29]
[1766307161591,5.92739507,125.58,125.51,3.29]
[1766307162596,0.05500021,125.56,125.51,3.29]
[1766307189403,1.72302405,125.56,125.51,3.29]
[1766307197614,3.38,125.55,125.5,7.1743]
[1766307197818,3.38,125.55,125.49,50.41]
[1766307198018,0.05687172,125.53,125.5,3.37]
[1766307201320,3.38,125.55,125.5,3.37]
[1766307202317,0.05213149,125.54,125.51,0.06098853]
[1766307202920,0.05213149,125.54,125.51,3.43098853]
[1766307205921,1.72015533,125.54,125.51,3.43098853]
[1766307206117,1.72015533,125.54,125.51,0.06098853]
[1766307206324,5.10015533,125.54,125.51,0.06098853]
[1766307208517,5.1008552,125.54,125.51,0.06098853]
[1766307208710,1.7208552,125.54,125.51,0.06098853]
[1766307212327,0.05213149,125.54,125.51,0.06098853]
[1766307212630,1.7208552,125.54,125.51,0.06098853]
[1766307213326,5.1308552,125.54,125.51,0.06098853]
[1766307217422,3.46213149,125.54,125.51,0.06098853]
[1766307219325,0.05213149,125.54,125.51,0.06098853]
[1766307220829,3.42213149,125.54,125.51,0.06098853]
[1766307222037,5.0908552,125.54,125.51,0.00098853]
[1766307222233,3.37,125.53,125.48,3.37]
[1766307227742,5.0908552,125.54,125.48,3.37]
[1766307229330,3.37,125.53,125.48,3.37]
[1766307231842,3.37,125.53,125.47,47.04]
[1766307232050,3.42229332,125.51,125.47,47.04]
[1766307233645,3.42229332,125.51,125.46,3.37]
[1766307271763,3.42229332,125.51,125.46,10.5467]
[1766307275379,3.42229332,125.51,125.46,20.31210839]
[1766307278783,0.05229332,125.51,125.47,3.41]
[1766307278983,0.05229332,125.51,125.47,10.586]
[1766307279178,0.05229332,125.51,125.48,3.41]
[1766307292891,0.05229332,125.51,125.47,7.176]
[1766307293495,0.05229332,125.51,125.47,10.586]
[1766307293694,3.35229332,125.51,125.46,47.06]
[1766307296407,3.35229332,125.51,125.46,50.47]
[1766307297301,3.35229332,125.51,125.47,3.41]
[1766307297806,3.35229332,125.51,125.45,20.35270839]
[1766307299694,3.35229332,125.51,125.46,3.41]
[1766307302204,0.05229332,125.51,125.46,3.41]
[1766307302809,0.00229332,125.51,125.47,3.41]
[1766307303801,0.00229332,125.51,125.48,3.46052936]
[1766307316210,0.00229332,125.51,125.48,0.05052936]
[1766307316511,0.00229332,125.51,125.48,3.42052936]
[1766307338525,3.39,125.56,125.49,3.32]
[1766307338826,8.83959144,125.57,125.5,3.32]
[1766307339016,12.22959144,125.57,125.5,3.32]
[1766307339723,0.05627129,125.55,125.52,0.05282268]
[1766307341428,0.05627129,125.55,125.52,3.37282268]
[1766307350537,8.83879144,125.58,125.52,3.37282268]
[1766307350742,12.22879144,125.58,125.52,3.37282268]
[1766307351636,0.05924756,125.56,125.52,3.37282268]
[1766307357937,5.117939,125.56,125.52,3.37282268]
[1766307358235,5.117939,125.56,125.52,0.05282268]
[1766307359641,12.289239,125.56,125.52,0.05282268]
[1766307364047,5.117939,125.56,125.52,0.05282268]
[1766307365251,3.44924756,125.56,125.52,0.05282268]
[1766307375157,0.05924756,125.56,125.52,3.30282268]
[1766307401175,3.53924756,125.56,125.52,0.05282268]
[1766307421906,3.53924756,125.56,125.52,3.43282268]
[1766307422308,3.53924756,125.56,125.52,0.05282268]
[1766307425803,3.53924756,125.56,125.52,3.53282268]
[1766307427800,0.05924756,125.56,125.52,3.53282268]
[1766307450026,1.72729845,125.56,125.52,3.53282268]
[1766307451028,0.05924756,125.56,125.52,3.53282268]
[1766307451213,1.72729845,125.56,125.52,3.53282268]
[1766307458435,5.22729845,125.56,125.52,3.53282268]
[1766307459437,1.66805089,125.55,125.52,3.53282268]
[1766307465636,1.72729845,125.56,125.52,3.53282268]
[1766307471139,5.22729845,125.56,125.52,3.53282268]
[1766307471343,5.22729845,125.56,125.52,0.05282268]
[1766307482161,3.55924756,125.56,125.52,0.05282268]
[1766307482363,5.22729845,125.56,125.52,0.05282268]
[1766307482557,1.72729845,125.56,125.52,3.27282268]
[1766307482753,0.05924756,125.56,125.52,3.27282268]
[1766307482954,47.04,125.58,125.52,3.27282268]
[1766307483149,1.66805089,125.59,125.53,3.22]
[1766307483956,0.06014017,125.57,125.55,0.05877963]
[1766307504577,0.06014017,125.57,125.55,3.41877963]
[1766307504774,0.00014017,125.57,125.55,3.41877963]
[1766307520490,3.4,125.62,125.55,3.41877963]
[1766307521390,3.45537275,125.6,125.55,3.41877963]
[1766307521596,3.45537275,125.6,125.56,0.05844158]
[1766307523595,6.06143337,125.6,125.56,0.05844158]
[1766307523803,3.4,125.57,125.52,9.76540839]
[1766307523990,3.4,125.57,125.51,3.32]
[1766307524189,3.4,125.57,125.52,3.32]
[1766307524492,3.4,125.57,125.51,9.76540839]
[1766307524693,0.0589178,125.55,125.53,0.06019203]
[1766307525890,0.0589178,125.55,125.51,3.32]
[1766307526896,0.0589178,125.55,125.52,0.05871931]
[1766307547315,0.0589178,125.55,125.52,3.45871931]
[1766307549513,1.66789398,125.58,125.52,3.45871931]
[1766307550112,5.18789398,125.59,125.52,3.45871931]
[1766307550620,0.05156395,125.57,125.52,3.45871931]
[1766307566330,0.05156395,125.57,125.52,13.2241277]
[1766307566629,0.05156395,125.57,125.52,3.45871931]
[1766307572441,0.05156395,125.57,125.52,13.2241277]
[1766307572829,0.05156395,125.57,125.53,3.27]
[1766307577941,0.00156395,125.57,125.53,3.27]
[1766307578136,0.00156395,125.57,125.53,10.4426]
[1766307578335,0.00156395,125.57,125.54,3.41]
[1766307592849,0.00156395,125.57,125.52,60.2741277]
[1766307593244,0.00156395,125.57,125.53,3.41]
[1766307600456,1.66957235,125.57,125.53,3.41]
[1766307601367,1.6680084,125.59,125.53,3.41]
[1766307601570,1.6680084,125.6,125.53,9.76540839]
[1766307602057,7.1693,125.6,125.54,9.76540839]
[1766307602268,4.8780084,125.62,125.54,9.76540839]
[1766307602572,4.8780084,125.62,125.57,0.05232626]
[1766307602758,7.1684,125.61,125.57,0.05232626]
[1766307603360,0.05450427,125.6,125.57,0.05232626]
[1766307604866,0.00450427,125.6,125.57,0.05232626]
[1766307611483,3.39,125.67,125.57,121.35773465]
[1766307611679,3.39,125.67,125.58,9.76540839]
[1766307612575,0.05988631,125.64,125.61,0.05993108]
[1766307612775,3.44988631,125.64,125.57,9.76540839]
[1766307612975,3.39,125.63,125.56,9.76540839]
[1766307613178,3.39,125.63,125.55,9.76540839]
[1766307613381,3.39,125.63,125.55,16.93660839]
[1766307613876,0.00022565,125.6,125.58,0.05330214]
[1766307640404,0.00022565,125.6,125.58,7.22310214]
[1766307642798,0.00022565,125.6,125.58,0.05330214]
[1766307646105,5.83396416,125.65,125.58,0.05330214]
[1766307646710,5.83396416,125.65,125.58,7.22310214]
[1766307647012,0.06055365,125.63,125.58,16.98851053]
[1766307647803,0.00055365,125.63,125.58,16.98851053]
[1766307649813,0.00055365,125.63,125.59,7.1692]
[1766307650019,0.00055365,125.63,125.6,47.02]
[1766307650206,0.00055365,125.63,125.6,56.78540839]
[1766307651217,0.00055365,125.63,125.6,47.02]
[1766307651715,0.00055365,125.63,125.6,54.1884]
[1766307655313,3.23,125.71,125.61,111.5061]
[1766307656321,0.05941227,125.67,125.65,0.051361]
[1766307658922,51.42505746,125.72,125.65,0.051361]
[1766307659121,3.23,125.72,125.65,0.051361]
[1766307659308,111.3815,125.76,125.65,0.051361]
[1766307659309,3.23,125.76,125.65,0.051361]
[1766307659515,3.23,125.74,125.66,7.1651]
[1766307659917,0.05032408,125.71,125.69,0.05991007]
[1766307661423,3.23,125.7,125.62,111.4933]
[1766307661623,3.23,125.7,125.61,121.27150839]
[1766307661624,3.23,125.7,125.63,47.0]